Cogmind - Beta 10 X2 @@@ ROGUE MODE // 2020.07.18 @ 15:58:48 Player: Joshua Result: Escaped! Performance ------------- Evolutions (9) 4500 Regions Visited (31) 6200 Robots Destroyed (467) 2335 Value Destroyed (23677) 23677 Prototype IDs (59) 1180 Alien Tech Used (0) 0 Bonus (14762) 14762 TOTAL SCORE: 52654 Bonus ------- High Alert Combat Kills 5965 Follower Combat Kills 2598 Entered Garrisons 800 Used RIF Installer 2000 Network Hubs Disabled 800 Aligned with FarCom 300 Met Imprinter 300 Built Enhanced Grunts 300 A7 Reached Mainframe 300 Win 3000 Friendly Fire -1601 Cogmind --------- Core Integrity 1491/1600 Matter 300/300 Energy 790/800 System Corruption 4% Temperature Cool (4) Movement Treading (192) Ox2 Location To Epsilon Eridani Parts ------- > --- POWER (3) -------- Reinforced Antimatter Reactor Reinforced Antimatter Reactor Quantum Reactor > --- PROPULSION (3) --- Medium Treads Biometal Heavy Treads > --- UTILITY (16) ----- Advanced Cooling System Advanced Coolant Injector Large Storage Unit Large Storage Unit High-capacity Storage Unit High-capacity Storage Unit High-capacity Storage Unit High-capacity Storage Unit Advanced Terrain Scan Processor Advanced Target Analyzer Quantum Capacitor Improved Heavy Armor Plating EM Dispersion Field Advanced Force Field > --- WEAPON (3) ------- Enhanced Nova Cannon Multirail Multirail > --- INVENTORY (48) --- Light Particle Reactor Light Particle Reactor Quantum Reactor Biometal Medium Treads Armored Heavy Treads Armored Wheel Armored Wheel Armored Huge Wheel Fusion Compressor Advanced Power Amplifier Energy Well (500) Energy Well (500) Experimental Matter Compressor (500) Advanced Terrain Scanner Experimental Targeting Computer Advanced Armor Integrity Analyzer Advanced Particle Charger Quantum Capacitor Advanced Transmission Jammer Experimental Phase Shifter Improved Weapon Shielding Heavy Reflective Plating Experimental Focal Shield Beam Splitter Advanced Force Field Relay Coupler [NC] (39) Relay Coupler [NC] (39) Relay Coupler [Grunt] (36) Advanced Component Analysis Suite Hacking Drone Bay (1/1) HERF Cannon HERF Cannon EMDS EMDS Nova Cannon Micro-nuke Launcher Advanced Remote Datajack Improved Plasma Cutter Molecular Deconstructor Longsword +1 CR-A16's Behemoth Slayer Peak State ------------ > --- POWER ------------ Reinforced Antimatter Reactor Reinforced Antimatter Reactor Quantum Reactor > --- PROPULSION ------- Medium Treads Biometal Heavy Treads > --- UTILITY ---------- Advanced Cooling System Advanced Coolant Injector Large Storage Unit Large Storage Unit High-capacity Storage Unit High-capacity Storage Unit High-capacity Storage Unit High-capacity Storage Unit Advanced Terrain Scan Processor Advanced Target Analyzer Quantum Capacitor Improved Heavy Armor Plating EM Dispersion Field Advanced Force Field > --- WEAPON ----------- Enhanced Nova Cannon Multirail Multirail > --- INVENTORY -------- Light Particle Reactor Light Particle Reactor Quantum Reactor Biometal Medium Treads Armored Heavy Treads Armored Wheel Armored Wheel Armored Huge Wheel Fusion Compressor Advanced Power Amplifier Energy Well Energy Well Experimental Matter Compressor Advanced Terrain Scanner Experimental Targeting Computer Advanced Armor Integrity Analyzer Advanced Particle Charger Quantum Capacitor Advanced Transmission Jammer Experimental Phase Shifter Improved Weapon Shielding Heavy Reflective Plating Experimental Focal Shield Beam Splitter Advanced Force Field Relay Coupler [NC] Relay Coupler [NC] Relay Coupler [Grunt] Advanced Component Analysis Suite Hacking Drone Bay HERF Cannon HERF Cannon EMDS EMDS Nova Cannon Micro-nuke Launcher Advanced Remote Datajack Improved Plasma Cutter Molecular Deconstructor Longsword +1 CR-A16's Behemoth Slayer [Rating: 183] Favorites ----------- Power Antimatter Reactor Engine Reinforced Deuterium Engine Power Core Reinforced Fission Core Reactor Antimatter Reactor Propulsion Armored Wheel Treads Light Treads Leg Flexi-carbon Leg Wheel Armored Wheel Hover Unit Aerolev Unit Utility Large Storage Unit Device Advanced Cooling System Storage Large Storage Unit Processor Advanced Targeting Computer Hackware Relay Coupler [NC] Protection Centrium Medium Armor Plating Weapon EMDS Energy Gun Force Rifle Energy Cannon EMDS Ballistic Gun Improved Assault Rifle Ballistic Cannon Heavy Flak Cannon Launcher Micro-nuke Launcher Special Weapon Improved Plasma Cutter Slashing Weapon Longsword +1 Piercing Weapon CR-A16's Pointy Stick Build | -11 -10 -10 -9 -9 -9 -8 -8 -8 -7 -7 -7 -7 -6 -6 -6 -6 -5 -5 -5 -5 -5 -5 -5 -4 -4 -4 -4 -3 -2 -2 -1 ------- Run | Scr Mat Min Mat Min Exi Min Mat Sto Fac Low Low Zio Pro Fac Gar Fac Fac Was Fac Ext Cet Arc Hub Fac Gar Fac Gar Res Res Gar Acc Slots Evolved 18 | . . . 2 . . . 2 . 2 . . . . 2 . . 2 . . . . . . 2 . . . 2 2 . 2 Power 2 | . . . . . . . . . . . . . . . . . . . . . . . . 1 . . . . 1 . . Propulsion 1 | . . . . . . . . . . . . . . . . . 1 . . . . . . . . . . . . . . Utility 14 | . . . 2 . . . 2 . 1 . . . . 2 . . 1 . . . . . . 1 . . . 2 1 . 2 Weapon 1 | . . . . . . . . . 1 . . . . . . . . . . . . . . . . . . . . . . Parts Attached 651 | . 8 7 12 11 1 6 21 29 11 8 25 8 23 36 28 32 4 2 11 31 4 4 39 35 20 48 27 72 6 28 54 Power 26 | . . 1 2 1 . . 2 1 1 . 1 . 1 2 . . . . . . 1 1 1 2 1 3 1 1 1 1 1 Engine 12 | . . 1 2 1 . . 2 1 1 . 1 . . 2 . . . . . . 1 . . . . . . . . . . Core 2 | . . . . . . . . . . . . . 1 . . . . . . . . . . . . . 1 . . . . Reactor 12 | . . . . . . . . . . . . . . . . . . . . . . 1 1 2 1 3 . 1 1 1 1 Propulsion 87 | . 5 3 2 2 . 1 3 8 2 . 1 . 10 5 6 4 1 . . . . . 3 1 1 13 1 8 . 1 6 Treads 38 | . 1 . . 2 . 1 . 3 . . . . 5 2 4 2 . . . . . . . 1 . 6 1 5 . 1 4 Leg 8 | . 2 3 . . . . . . . . . . . . . . . . . . . . 1 . 1 1 . . . . . Wheel 40 | . 2 . 2 . . . 3 4 2 . 1 . 5 3 2 2 1 . . . . . 2 . . 6 . 3 . . 2 Hover 1 | . . . . . . . . 1 . . . . . . . . . . . . . . . . . . . . . . . Flight . | . . . . . . . . . . . . . . . . . . . . . . . . . . . . . . . . Utility 329 | . 2 . 4 6 1 1 8 6 3 4 12 3 10 20 7 16 2 . 9 19 1 . 24 17 9 27 15 43 5 21 34 Device 206 | . . . 3 3 . . 2 2 . 2 6 2 5 9 . 11 . . 4 9 . . 16 12 6 19 7 35 4 18 31 Storage 28 | . 1 . 1 . 1 . 2 1 . . . . 1 3 4 . 1 . 2 . . . . 1 . 3 5 2 . . . Processor 13 | . 1 . . . . . 2 2 1 . . . . 2 . . . . . 1 . . 1 . . . . . 1 . 2 Hackware 6 | . . . . . . . . . . . . . . . . . . . 1 . . . . . . . . 4 . . 1 Protection 76 | . . . . 3 . 1 2 1 2 2 6 1 4 6 3 5 1 . 2 9 1 . 7 4 3 5 3 2 . 3 . Artifact . | . . . . . . . . . . . . . . . . . . . . . . . . . . . . . . . . Weapon 209 | . 1 3 4 2 . 4 8 14 5 4 11 5 2 9 15 12 1 2 2 12 2 3 11 15 9 5 10 20 . 5 13 Energy Gun 9 | . . 2 2 . . . . . . . . . . . . . . . 1 2 1 . . . . . . 1 . . . Energy Cannon 45 | . . . . . . . . . . . . . . . 2 . . 1 . 1 . . 2 3 5 4 3 14 . 3 7 Ballistic Gun 76 | . 1 . 2 1 . 3 2 9 3 2 7 1 2 6 7 7 . . . 4 . 2 4 8 . 1 1 . . 1 2 Ballistic Cannon 6 | . . . . . . . 3 . . . . . . . 1 1 . . . . . . . . . . 1 . . . . Launcher 14 | . . 1 . 1 . 1 2 1 . . 2 . . . 3 2 . . . . . . . . . . 1 . . . . Special Weapon 22 | . . . . . . . . . 1 . . 2 . . 1 . 1 1 1 3 . 1 3 2 . . 1 3 . . 2 Impact Weapon . | . . . . . . . . . . . . . . . . . . . . . . . . . . . . . . . . Slashing Weapon 28 | . . . . . . . 1 4 1 2 2 . . 1 1 2 . . . 2 1 . 1 2 3 . 2 2 . . 1 Piercing Weapon 9 | . . . . . . . . . . . . 2 . 2 . . . . . . . . 1 . 1 . 1 . . 1 1 Special Melee Weapon . | . . . . . . . . . . . . . . . . . . . . . . . . . . . . . . . . Unidentified Prototypes 16 | . . . 1 . . . 1 2 . . . 1 . . . . . 1 . 1 1 . 5 1 . . . 1 . . 1 Parts Lost 72 | . 1 2 2 3 . 3 6 10 1 . 4 . 5 8 2 8 . . . . 1 . 2 3 3 2 2 4 . . . Power 12 | . . 1 . 1 . . 2 1 1 . 1 . . 1 . . . . . . 1 . . 1 1 1 . . . . . Propulsion 17 | . 1 . . . . . 1 3 . . 1 . 2 2 . 2 . . . . . . 2 1 1 . . 1 . . . Utility 19 | . . . . 2 . 1 . 3 . . 1 . 1 3 1 1 . . . . . . . 1 1 . 2 2 . . . Weapon 24 | . . 1 2 . . 2 3 3 . . 1 . 2 2 1 5 . . . . . . . . . 1 . 1 . . . Highest Loss Streak 6 | . 1 2 2 1 . 2 2 3 1 . 2 . 5 5 1 6 . . . . 1 . 2 3 1 2 1 2 . . . Average Slot Usage (%) 92 | . 98 100 97 95 100 99 99 98 99 100 99 100 99 99 96 99 98 100 100 99 100 100 91 90 88 83 82 80 82 82 83 Engine 3 | . 14 14 11 11 11 11 8 8 6 7 6 7 3 3 6 6 5 5 5 5 5 2 . . . . . . . . . Reactor 4 | . . . . . . . . . . . . . . . . . . . . . . 2 4 10 9 9 7 4 8 11 12 Treads 5 | . 1 . . 20 22 22 . 11 1 . . . 1 . 12 . . . . . . . . . 5 1 9 6 8 7 5 Leg 1 | . 17 28 8 . . . . . . . . . . . . . . . . . . . . . 4 4 . . . . . Wheel 7 | . 8 . 14 1 . . 17 5 13 15 14 15 13 12 . 12 15 17 17 17 17 17 16 9 . 3 . 2 . . 2 Device 7 | . . . 10 14 22 19 1 . . 6 4 7 5 2 . 3 5 5 4 1 . . 2 9 5 13 9 12 17 16 19 Storage 28 | . 14 14 20 22 22 22 26 34 30 30 30 30 30 26 27 33 29 29 29 29 29 29 29 26 31 31 30 33 26 26 24 Processor 9 | . 12 14 11 . . . 17 17 15 15 15 15 15 20 20 20 17 17 17 17 17 17 14 10 4 . . . 4 4 8 Protection 5 | . . . . 3 . 2 8 1 7 . 2 . 1 9 8 2 5 5 4 3 5 5 5 9 13 5 8 3 4 4 4 Energy Cannon 3 | . . . . . . . . . . . . . . . 7 2 . . . . . . . 3 9 9 8 5 4 4 5 Ballistic Gun 9 | . 13 14 9 21 22 21 8 15 21 22 22 15 22 18 8 11 13 11 11 7 11 11 10 6 . . . . . . . Naked Turns . | . . . . . . . . . . . . . . . . . . . . . . . . . . . . . . . . Heaviest Build 304 | 13 24 25 41 43 49 49 63 79 88 91 92 92 94 138 151 152 152 149 166 169 166 169 212 210 219 227 249 285 280 299 304 Greatest Support 110 | 20 26 20 24 40 40 40 24 42 42 22 22 20 44 50 50 24 34 34 34 34 34 34 40 80 80 80 100 105 105 105 110 Greatest Overweight (x) 12 | . 2 1 1 1 1 1 2 7 3 4 9 4 4 12 6 6 6 4 4 4 4 4 8 5 2 8 3 7 2 3 7 Average Overweight (x) 3 | . . 1 . . 1 1 1 1 2 3 3 4 3 4 2 5 4 4 4 4 4 4 5 4 2 5 2 3 2 2 4 Largest Inventory Capacity 58 | . 10 10 14 14 16 16 22 28 28 28 28 28 28 32 38 38 38 38 40 40 40 40 40 44 44 46 58 58 54 48 48 Average Capacity 35 | . 9 10 13 14 14 16 21 26 28 28 28 28 28 30 33 38 38 38 39 40 40 40 40 40 44 45 45 53 48 48 48 Most Carried 58 | . 8 10 14 14 16 16 22 28 28 28 28 28 28 32 38 38 38 38 40 40 40 40 40 44 44 46 58 58 51 48 48 Average Carried 35 | . 6 9 13 13 14 15 20 26 27 27 27 27 27 30 32 35 37 37 38 39 39 40 39 39 43 45 44 53 47 47 47 Final Capacity 58 | 6 10 10 14 14 16 16 22 28 28 28 28 28 28 32 38 38 38 38 40 40 40 40 40 44 44 46 58 54 48 48 48 Final Carried 57 | 6 8 10 14 14 16 15 22 28 28 28 27 28 23 32 38 38 38 38 40 40 40 40 35 42 44 45 57 51 48 48 48 Class Distribution -------------------- 40% | Hauler-Mutant 13% | Scavenger-Mutant 11% | Hauler-Gunner 9% | Hauler-Skirmisher 8% | Mutant 7% | Hauler-Assassin 4% | Scavenger-Skirmisher Dominant Class ---------------- Mutant | -10/Materials Scavenger-Mutant | -10/Mines Mutant | -9/Materials Mutant | -9/Mines Mutant | -9/Exiles Mutant | -8/Mines Hauler-Mutant | -8/Materials Hauler-Mutant | -8/Storage Hauler-Gunner | -7/Factory Hauler-Gunner | -7/Lower Caves Hauler-Gunner | -7/Lower Caves Hauler-Mutant | -7/Zion Hauler-Gunner | -6/Proximity Caves Hauler-Tank | -6/Factory Hauler-Skirmisher | -6/Garrison Hauler-Skirmisher | -6/Factory Scavenger-Skirmisher | -5/Factory Scavenger-Skirmisher | -5/Waste Hauler-Mutant | -5/Factory Hauler-Mutant | -5/Extension Hauler-Skirmisher | -5/Cetus Hauler-Mutant | -5/Archives Scavenger-Skirmisher | -5/Hub_04(d) Hauler-Skirmisher | -4/Factory Scavenger-Mutant | -4/Garrison Hauler-Mutant | -4/Factory Hauler-Mutant | -4/Garrison Hauler-Mutant | -3/Research Hauler-Assassin | -2/Research Hauler-Mutant | -2/Garrison Hauler-Assassin | -1/Access Resources | -11 -10 -10 -9 -9 -9 -8 -8 -8 -7 -7 -7 -7 -6 -6 -6 -6 -5 -5 -5 -5 -5 -5 -5 -4 -4 -4 -4 -3 -2 -2 -1 ----------- Run | Scr Mat Min Mat Min Exi Min Mat Sto Fac Low Low Zio Pro Fac Gar Fac Fac Was Fac Ext Cet Arc Hub Fac Gar Fac Gar Res Res Gar Acc Matter Collected 19985 | 165 121 287 396 569 . 253 462 1202 310 203 552 86 645 672 1208 1078 30 66 1 452 95 70 988 1016 1495 1498 1231 1917 . 1468 1449 Remotely 1312 | . . . . 151 . . 180 498 . . . . . . . 483 . . . . . . . . . . . . . . . Salvage Created 26060 | . 127 196 538 324 . 315 662 1550 407 75 849 . 409 1063 1557 910 30 . . 28 . . 1715 1528 1919 2028 1958 3370 . 2049 2453 Parts 1109 | . 8 9 38 16 . 27 48 65 28 2 32 . 14 46 82 55 6 . . 4 . . 91 87 53 48 61 107 . 54 128 Haulers Intercepted 11 | . . . 1 . . . 1 3 2 . . . . . . 1 . . . . . . 1 1 . 1 . . . . . Recyclers Shooed 22 | . . . 2 . . . . 1 3 . . . . 3 . 3 . . . 2 . . . 1 . . . 4 . . 3 Parts Field Recycled . | . . . . . . . . . . . . . . . . . . . . . . . . . . . . . . . . Retrieved Matter . | . . . . . . . . . . . . . . . . . . . . . . . . . . . . . . . . Parts Self-Destructed 50 | . . . . . . . . . . 1 24 . 25 . . . . . . . . . . . . . . . . . . Prevented 5 | . . . . . . . . . . . 5 . . . . . . . . . . . . . . . . . . . . Kills | -11 -10 -10 -9 -9 -9 -8 -8 -8 -7 -7 -7 -7 -6 -6 -6 -6 -5 -5 -5 -5 -5 -5 -5 -4 -4 -4 -4 -3 -2 -2 -1 ------- Run | Scr Mat Min Mat Min Exi Min Mat Sto Fac Low Low Zio Pro Fac Gar Fac Fac Was Fac Ext Cet Arc Hub Fac Gar Fac Gar Res Res Gar Acc Combat Hostiles Destroyed 364 | . 2 4 9 16 . 11 18 21 3 1 17 . 7 8 22 12 . . . . . . 12 18 34 26 30 41 . 26 26 Melee 3 | . . . . . . . . . . . . . . 1 . 1 . . . . . . . . . 1 . . . . . Guns 124 | . 2 3 9 10 . 10 10 18 3 1 15 . 7 6 13 7 . . . . . . . 7 . . . . . . 3 Cannons 107 | . . . . . . . 5 3 . . . . . . 3 3 . . . . . . 1 5 19 9 13 19 . 11 16 AOE 27 | . . 1 . 6 . 1 3 . . . 2 . . . 6 1 . . . . . . 1 . . 2 4 . . . . Classes Destroyed 22 | . 2 . 3 2 . 4 1 2 1 1 1 . . 1 . 1 . . . . . . . 1 . 1 . . . . 1 Worker 18 | . . . . . . 1 1 2 1 . . . . 1 . . . . . . . . 7 2 . 1 . 2 . . . Builder 17 | . . . 2 1 . . 3 . . . . . . . . . . . . . . . 3 5 . 1 . . . . 2 Tunneler 2 | . . . . . . 1 . . . . . . . . . . 1 . . . . . . . . . . . . . . Hauler 11 | . . . 1 . . . 1 3 2 . . . . . . 1 . . . . . . 1 1 . 1 . . . . . Recycler 16 | . . . . . . . . 3 1 . . . . 3 . 1 . . . . . . 1 . . 2 . 2 . . 3 Carrier 1 | . . . . . . . . . . . . . . . . . . . . . . . . . . . . . . . 1 Minesweeper 1 | . . . . . . . . . . 1 . . . . . . . . . . . . . . . . . . . . . Mechanic 2 | . . . . . . . . . . . . . . . . 1 . . . . . . 1 . . . . . . . . Operator 6 | . . . . . . . 2 1 . . . . . . . . . . . 2 . . . . . 1 . . . . . Watcher 24 | . 1 . 1 . . . 2 2 2 . . . . 1 . 1 . . . . . . . 1 . 3 . 5 . . 5 Swarmer 66 | . . . . . . 8 6 . . . 3 . 2 . 4 4 . . . . . . . . 14 . 12 . . 4 9 Saboteur 3 | . . . . . . . . . . . . . . . . . . . . . . . . . . 1 . 2 . . . Grunt 143 | . 2 4 5 4 . 2 9 12 . . 11 . 3 4 13 4 . . . . . . 1 8 15 9 6 17 . 11 3 Brawler 14 | . . . . 1 . . . . . . 1 . 2 . 1 . . . . . . . 1 . . 2 2 3 . 1 . Duelist 12 | . . . . . . 1 . 1 . . . . . . 1 . . . . . . . 2 1 . 2 . 3 . 1 . Protector 1 | . . . . . . . . . . . . . . . . . . . . . . . . 1 . . . . . . . Sentry 36 | . . . 4 . . . 3 7 1 . . . . 1 2 2 . . . . . . 1 1 4 3 3 1 . 2 1 Hunter 15 | . . . . . . . . 1 . . . . . . . . . . . . . . . . . 2 4 2 . 6 . Programmer 47 | . . . . . . . . . 2 1 1 . . 2 1 2 . . . . . . . 7 . 7 . 13 . . 11 Behemoth 9 | . . . . . . . . . . . . . . 1 . . . . . . . . 1 . 1 . 3 . . 1 2 Enhanced Grunt 4 | . . . . . . . . . . . . . . . . . . . . . . . 4 . . . . . . . . Lightning 6 | . . . . . . . . . . . . . . . . . . . . . . . 6 . . . . . . . . Assembled 11 | . . . . 11 . . . . . . . . . . . . . . . . . . . . . . . . . . . Thug 1 | . . . . . . . . . . . . . 1 . . . . . . . . . . . . . . . . . . Mutant 1 | . . . . . . . . . . . 1 . . . . . . . . . . . . . . . . . . . . Best Kill Streak 18 | . 2 2 3 11 . 4 4 10 3 1 4 . 4 2 6 6 1 . . 1 . . 8 5 5 5 4 14 . 5 18 Combat Bots Only 12 | . 2 2 2 11 . 4 3 3 1 1 4 . 4 1 6 5 . . . . . . 4 5 5 5 4 12 . 5 12 Max Kills in Single Turn 8 | . 1 1 2 4 . 2 2 1 1 1 2 . 2 1 2 1 1 . . 1 . . 8 2 2 2 4 2 . 1 2 Gunslinging 1 | . . . . 1 . 1 1 . . . 1 . 1 . . . . . . . . . . . . . . . . . . Exploded 4 | . . 1 . 4 . 1 2 . . . 1 . . . 2 1 . . . . . . 1 . . 2 4 . . . . Melee 1 | . . . . . . . . . . . . . . 1 . 1 . . . . . . . . . 1 . . . . . Uniques/NPCs Destroyed . | . . . . . . . . . . . . . . . . . . . . . . . . . . . . . . . . Combat | -11 -10 -10 -9 -9 -9 -8 -8 -8 -7 -7 -7 -7 -6 -6 -6 -6 -5 -5 -5 -5 -5 -5 -5 -4 -4 -4 -4 -3 -2 -2 -1 -------- Run | Scr Mat Min Mat Min Exi Min Mat Sto Fac Low Low Zio Pro Fac Gar Fac Fac Was Fac Ext Cet Arc Hub Fac Gar Fac Gar Res Res Gar Acc Damage Taken 21569 | . 210 285 349 728 . 386 890 1661 268 104 751 . 1149 1626 1339 1389 . . . 249 151 24 893 2104 1133 841 1276 2171 . 206 1386 Core 2240 | . 89 75 38 123 . 37 121 299 33 . 70 . 111 331 162 141 . . . 81 . . 62 121 87 27 50 58 . 15 109 Absorbed by Shields 1132 | . . . . . . . . . . . . . . . 71 . . . . . 35 . . . 44 . 23 37 . 215 707 Reduced by Siege Mode 344 | . . . . . . . . . . . . . . . . . . . . . . . . 15 33 46 104 132 . 6 8 Core Remaining (%) 67 | 100 . 34 . . . 50 . 23 . . . . 69 . . 25 . . . . . . 85 . . . 75 95 . 98 93 Volleys Fired 1380 | . 11 18 43 34 . 22 59 99 32 9 31 5 21 39 70 47 5 . 1 18 3 4 59 49 145 113 99 186 . 65 93 Largest 3 | . 2 2 2 2 . 2 2 2 3 3 3 1 3 3 3 3 3 . 1 3 3 3 3 3 1 2 2 1 . 1 2 Hottest 175 | . 60 85 115 46 . 46 78 62 74 74 79 30 84 81 149 109 93 . 40 140 140 140 103 105 98 175 175 105 . 70 120 Shots Fired 2111 | . 22 34 85 62 . 42 115 192 92 27 81 5 63 117 146 109 8 . 1 28 9 8 67 91 145 114 101 185 . 65 97 Gun 1137 | . 22 33 85 56 . 41 60 163 90 27 75 . 63 117 102 70 5 . . 23 9 6 14 64 . . 2 . . 2 8 Cannon 845 | . . . . . . . 52 27 . . . . . . 20 37 . . . 2 . . 12 27 145 114 92 172 . 63 82 Launcher 28 | . . 1 . 6 . 1 3 2 . . 6 . . . 6 2 . . . . . . . . . . 1 . . . . Special 101 | . . . . . . . . . 2 . . 5 . . 18 . 3 . 1 3 . 2 41 . . . 6 13 . . 7 Kinetic 1180 | . 11 17 46 56 . 41 112 190 90 27 75 . 63 117 113 107 5 . . 10 6 4 14 64 . . 2 . . 2 8 Thermal 298 | . . 3 39 . . . . . 2 . . . . . 18 . . . . 13 3 2 11 . 30 38 13 95 . . 31 Explosive 19 | . . 1 . 6 . 1 3 . . . . . . . 6 1 . . . . . . . . . . 1 . . . . Electromagnetic 550 | . 11 13 . . . . . 2 . . 6 . . . 9 1 . . . 2 . . 12 27 115 76 85 77 . 63 51 Robot Hit Streak 38 | . 6 6 14 13 . 6 14 38 21 18 17 2 18 19 18 16 4 . 5 11 13 3 17 27 20 14 23 26 . 9 19 Robot Miss Streak 15 | . 4 2 3 2 . 2 5 3 3 1 2 1 2 6 4 15 1 . . 1 3 1 3 4 2 4 2 5 . 1 3 Penetration Max 1 | . . . . . . . . . . . 1 . 1 . 1 1 . . . . . . 1 1 1 1 1 1 . 1 1 Secondary Targets 23 | . . . . 1 . 3 2 2 . . 6 . 4 . 2 . . . . . . . . 2 . . . . . . 1 Max Gunslinging Chain 2 | . . . . 1 . 1 1 1 . . 2 . 2 . 1 . . . . . . . . 1 . . . . . . 1 Capacitor 505 | . . . . . . . . . . . . . . . . . . . . . . . . . 7 112 88 153 . 63 82 Shots Hit Robots 1484 | . 12 21 59 40 . 24 67 149 65 17 62 3 51 105 110 91 6 . 1 20 5 6 44 74 61 75 64 158 . 29 65 Core Hits 714 | . 6 11 22 31 . 16 44 60 18 4 33 . 20 36 84 56 1 . . 5 3 4 29 30 31 28 30 58 . 20 34 Critical Hits 120 | . . . . . . . . 4 . . 1 . 1 1 13 3 1 . . . . . 4 13 12 9 14 15 . 15 14 Critical Kills 40 | . . . . . . . . . . . 1 . . . 5 . 1 . . . . . . 7 6 2 2 6 . 4 6 Critical Parts Destroyed 74 | . . . . . . . . 3 . . . . 1 1 7 2 . . . . . . 4 6 6 7 10 9 . 10 8 Melee Attacks 149 | . . . . . . . 1 11 1 4 2 23 . 22 1 16 . . . 5 1 . 7 11 4 . 7 12 . 5 16 Impact . | . . . . . . . . . . . . . . . . . . . . . . . . . . . . . . . . Slashing 103 | . . . . . . . 1 11 1 4 2 . . 6 1 16 . . . 5 1 . 5 11 3 . 6 12 . 4 14 Piercing 46 | . . . . . . . . . . . . 23 . 16 . . . . . . . . 2 . 1 . 1 . . 1 2 Sneak Attacks 6 | . . . . . . . . . . . . . . 1 . 3 . . . . . . . 2 . . . . . . . Combat Hostiles . | . . . . . . . . . . . . . . . . . . . . . . . . . . . . . . . . Follow-up Attacks 3 | . . . . . . . . . . . . . . 3 . . . . . . . . . . . . . . . . . Damage Inflicted 50675 | . 150 277 867 983 . 495 1721 2752 1024 347 1569 . 1031 2157 2520 2001 72 . . 488 152 109 2522 3336 3568 4795 3669 7782 . 2757 3531 Guns 14459 | . 150 213 867 628 . 396 588 2066 972 347 1218 . 1031 1717 993 675 72 . . 488 113 109 122 1468 . . . . . . 226 Cannons 27814 | . . . . . . . 821 462 . . . . . . 371 450 . . . . . . 581 1497 3476 4114 2584 7581 . 2669 3208 Explosions 5675 | . . 64 . 355 . 99 312 219 . . 351 . . . 821 373 . . . . . . 1710 5 92 681 302 106 . 88 97 Melee 2287 | . . . . . . . . . 42 . . . . 440 120 503 . . . . 39 . . 366 . . 682 95 . . . Ramming 5 | . . . . . . . . 5 . . . . . . . . . . . . . . . . . . . . . . . Kinetic 15420 | . 54 68 490 628 . 396 1409 2528 972 347 1218 . 1031 1717 1184 1125 72 . . 214 65 86 122 1468 . . . . . . 226 Thermal 7799 | . . 27 377 . . . . 35 10 . . . . . 215 118 . . . 274 48 23 109 . 92 1805 101 3471 . 88 1006 Explosive 2125 | . . 64 . 355 . 99 312 . . . . . . . 821 172 . . . . . . . . . . 302 . . . . Electromagnetic 23039 | . 96 118 . . . . . 184 . . 351 . . . 180 83 . . . . . . 2291 1502 3476 2990 2584 4216 . 2669 2299 Impact . | . . . . . . . . . . . . . . . . . . . . . . . . . . . . . . . . Slashing 2004 | . . . . . . . . . 42 . . . . 157 120 503 . . . . 39 . . 366 . . 682 95 . . . Piercing 283 | . . . . . . . . . . . . . . 283 . . . . . . . . . . . . . . . . . Highest Corruption 9 | . . . . 3 3 3 . 1 . . . . . . . 3 . . . 1 1 1 5 2 2 3 3 9 . . 4 Average Corruption 2 | . . . . 3 3 3 . 1 . . . . . . . 2 . . . 1 1 1 2 1 2 2 3 4 . . 2 Corruption Purged . | . . . . . . . . . . . . . . . . . . . . . . . . . . . . . . . . Effects 236 | . . . . 18 6 19 . 9 . . . . . . . 5 . . . . 2 1 21 2 23 29 63 30 . . 8 Message Errors 58 | . . . . 3 1 7 . . . . . . . . . 2 . . . . 1 . 7 1 7 9 16 3 . . 1 Matter Fused 30 | . . . . 4 1 2 . . . . . . . . . . . . . . . . 4 . . 2 14 3 . . . Heat Flow Errors 32 | . . . . 3 3 2 . . . . . . . . . . . . . . . . 3 . 3 3 6 8 . . 1 Energy Discharges 50 | . . . . 5 . 2 . 2 . . . . . . . . . . . . 1 . 2 . 10 5 10 8 . . 5 Data Loss (minor) 38 | . . . . 2 1 3 . 1 . . . . . . . 1 . . . . . . 4 . 3 5 12 5 . . 1 Data Loss (major) 2 | . . . . . . . . . . . . . . . . . . . . . . . 1 . . . . 1 . . . Targeting Errors 24 | . . . . 1 . 2 . 6 . . . . . . . 2 . . . . . 1 . 1 . 5 5 1 . . . Weapon Failures 2 | . . . . . . 1 . . . . . . . . . . . . . . . . . . . . . 1 . . . Overload Shots . | . . . . . . . . . . . . . . . . . . . . . . . . . . . . . . . . Overflow Damage 1805 | . . . . 2 . 17 19 . 6 . 1 . . 147 3 112 . . . . . . 30 170 124 409 77 393 . 118 177 Projectiles 1112 | . . . . . . . 19 . . . . . . . . 3 . . . . . . . 35 82 254 31 393 . 118 177 Explosions 250 | . . . . 2 . 17 . . . . 1 . . . 3 . . . . . . . 30 . 42 155 . . . . . Melee 443 | . . . . . . . . . 6 . . . . 147 . 109 . . . . . . . 135 . . 46 . . . . Knockbacks 11 | . . . . . . . 3 3 . . . . . . . 5 . . . . . . . . . . . . . . . Impact . | . . . . . . . . . . . . . . . . . . . . . . . . . . . . . . . . Kinetic 11 | . . . . . . . 3 3 . . . . . . . 5 . . . . . . . . . . . . . . . Secondary . | . . . . . . . . . . . . . . . . . . . . . . . . . . . . . . . . Self-Inflicted Damage 108 | . . 30 . . . . . . . . 2 . . . 59 . . . . . . . 17 . . . . . . . . Shots 8 | . . 1 . . . . . . . . 2 . . . 3 . . . . . . . 2 . . . . . . . . Rammed 1 | . . . . . . . . 1 . . . . . . . . . . . . . . . . . . . . . . . Targets Rammed 1 | . . . . . . . . 1 . . . . . . . . . . . . . . . . . . . . . . . Kicked . | . . . . . . . . . . . . . . . . . . . . . . . . . . . . . . . . Crushed . | . . . . . . . . . . . . . . . . . . . . . . . . . . . . . . . . Highest Temperature 460 | . 130 135 84 238 224 187 58 28 26 18 93 2 326 209 365 342 18 . 15 210 63 90 240 361 345 361 343 460 . 266 433 Average Temperature 92 | . 66 46 26 117 116 98 19 7 10 8 29 2 130 64 84 161 8 . 15 56 28 43 68 179 88 95 67 142 . 69 121 Received Heat Transfer 5040 | . 99 147 171 110 . 72 360 711 30 . 312 . 423 393 513 345 . . . 45 13 . 93 582 134 111 72 264 . 32 8 Effects 31 | . . . . 1 . . . . . . . . . . 4 1 . . . . . . . . 2 1 . 19 . . 3 Shutdowns 8 | . . . . . . . . . . . . . . . . . . . . . . . . . . 1 . 6 . . 1 Energy Bleed 9 | . . . . 1 . . . . . . . . . . . 1 . . . . . . . . . . . 6 . . 1 Interference 8 | . . . . . . . . . . . . . . . 4 . . . . . . . . . . . . 4 . . . Matter Decay 2 | . . . . . . . . . . . . . . . . . . . . . . . . . 1 . . 1 . . . Short Circuit 2 | . . . . . . . . . . . . . . . . . . . . . . . . . 1 . . . . . 1 Damage (minor) 2 | . . . . . . . . . . . . . . . . . . . . . . . . . . . . 2 . . . Siege Activations 58 | . . . . . . . . . . . . . . . . . . . . . . . . 1 12 7 13 11 . 10 4 Total Turns 776 | . . . . . . . . . . . . . . . . . . . . . . . . 13 186 64 101 208 . 124 80 Longest Duration 54 | . . . . . . . . . . . . . . . . . . . . . . . . 13 47 21 20 46 . 45 54 Robots Corrupted 99 | . . . . . . . . . . . . . . . . . . . . . . . 6 8 14 18 12 18 . 14 9 Combat Hostiles 84 | . . . . . . . . . . . . . . . . . . . . . . . 3 6 14 14 12 16 . 14 5 Parts Fried 205 | . . . . . . . . . . . . . . . 1 . . . . . . . 18 27 31 29 16 27 . 31 25 Impact Corruptions . | . . . . . . . . . . . . . . . . . . . . . . . . . . . . . . . . Robots Melted 5 | . . . . . . . . . . . . . . . . . . . . . . . . . . . . 5 . . . Combat Hostiles 5 | . . . . . . . . . . . . . . . . . . . . . . . . . . . . 5 . . . Parts Melted 50 | . . . 4 . . . . . . . . . . . . . . . . . . . . . . 1 . 42 . . 3 Heat Transferred 9283 | . . 74 987 . . . . 50 37 . . . . . 666 100 . . . 407 74 37 205 . 50 1275 222 4320 . 50 729 Parts Sabotaged 2 | . . . . . . . . . . . . . . . . . . . . . . . . . . 2 . . . . . Parts Stolen . | . . . . . . . . . . . . . . . . . . . . . . . . . . . . . . . . Parts Stripped . | . . . . . . . . . . . . . . . . . . . . . . . . . . . . . . . . Power Chain Reactions 6 | . . . . . . . . 1 . . . . . . . 1 . . . . . . . . 1 . . 1 . 1 1 Missiles Intercepted . | . . . . . . . . . . . . . . . . . . . . . . . . . . . . . . . . Alert | -11 -10 -10 -9 -9 -9 -8 -8 -8 -7 -7 -7 -7 -6 -6 -6 -6 -5 -5 -5 -5 -5 -5 -5 -4 -4 -4 -4 -3 -2 -2 -1 ------- Run | Scr Mat Min Mat Min Exi Min Mat Sto Fac Low Low Zio Pro Fac Gar Fac Fac Was Fac Ext Cet Arc Hub Fac Gar Fac Gar Res Res Gar Acc Peak Influence 1664 | . 102 134 247 168 . 94 251 294 171 . . . . 114 748 579 135 47 396 730 514 337 1268 607 1395 1225 1664 1344 352 1030 648 Average Influence 557 | . 56 66 99 45 . 59 126 154 62 . . . . 40 586 383 134 47 209 374 387 262 501 489 1032 872 1428 727 339 782 459 Maximum Alert Level 5 | . . . 1 . . . 1 1 . . . . . . 3 2 . . 1 3 2 1 4 2 4 4 5 4 1 3 2 Low Security (%) 31 | . 100 100 95 100 . 100 77 70 100 . . . . 100 7 11 100 100 38 14 14 35 19 . . . . . . . 10 Level 1 11 | . . . 4 . . . 22 29 . . . . . . 4 43 . . 61 45 31 64 21 8 . . . 26 100 7 6 Level 2 22 | . . . . . . . . . . . . . . . 64 45 . . . 38 54 . 42 91 18 12 . 24 . 16 82 Level 3 18 | . . . . . . . . . . . . . . . 22 . . . . 1 . . 11 . 35 78 11 28 . 75 . Level 4 10 | . . . . . . . . . . . . . . . . . . . . . . . 5 . 46 9 49 20 . . . Level 5 3 | . . . . . . . . . . . . . . . . . . . . . . . . . . . 39 . . . . High Security . | . . . . . . . . . . . . . . . . . . . . . . . . . . . . . . . . Max Security . | . . . . . . . . . . . . . . . . . . . . . . . . . . . . . . . . Squads Dispatched 53 | . 1 . . . . . 2 4 2 . . . . 3 . 7 . . . 2 . . 5 8 . 7 . 9 . . 3 Investigation 4 | . 1 . . . . . 1 . . . . . . . . . . . . 1 . . . 1 . . . . . . . Extermination 22 | . . . . . . . . . 2 . . . . 2 . 2 . . . . . . 1 3 . 5 . 4 . . 3 Reinforcement 13 | . . . . . . . 1 4 . . . . . 1 . 1 . . . 1 . . 3 2 . . . . . . . Assault 11 | . . . . . . . . . . . . . . . . 1 . . . . . . 1 2 . 2 . 5 . . . Garrison 3 | . . . . . . . . . . . . . . . . 3 . . . . . . . . . . . . . . . Intercept . | . . . . . . . . . . . . . . . . . . . . . . . . . . . . . . . . Construction Impeded 2 | . . . . . . . . 1 . . . . . . . . . . . . . . . 1 . . . . . . . Haulers Reinforced 2 | . . . . . . . . . . . . . . 1 . . . . . . . . . 1 . . . . . . . Stealth | -11 -10 -10 -9 -9 -9 -8 -8 -8 -7 -7 -7 -7 -6 -6 -6 -6 -5 -5 -5 -5 -5 -5 -5 -4 -4 -4 -4 -3 -2 -2 -1 --------- Run | Scr Mat Min Mat Min Exi Min Mat Sto Fac Low Low Zio Pro Fac Gar Fac Fac Was Fac Ext Cet Arc Hub Fac Gar Fac Gar Res Res Gar Acc Distress Signals 19 | . . . 2 . . . 2 1 1 . . . . . . 3 . . . 2 1 . 3 1 . 1 . 1 . . 1 Communications Jammed 20 | . . . . . . . . . . . . . . . . . . . . . . . . 7 . . . . . . 13 Distress Signals 17 | . . . . . . . . . . . . . . . . . . . . . . . . 5 . . . . . . 12 Times Spotted 477 | . 5 4 15 18 . 11 20 29 9 1 19 . 17 10 23 19 . . 5 15 10 4 28 24 37 34 12 62 . 14 32 Peak Tracking Total 10 | . 2 2 3 10 . 4 4 4 2 1 4 . 4 3 4 4 . . 4 5 5 3 4 6 5 5 3 9 1 6 4 Tactical Retreats 35 | . 1 . 1 . . . . 1 . . 2 . . 1 1 2 . . . . . . . 1 10 2 2 6 . 3 2 Traps | -11 -10 -10 -9 -9 -9 -8 -8 -8 -7 -7 -7 -7 -6 -6 -6 -6 -5 -5 -5 -5 -5 -5 -5 -4 -4 -4 -4 -3 -2 -2 -1 ------- Run | Scr Mat Min Mat Min Exi Min Mat Sto Fac Low Low Zio Pro Fac Gar Fac Fac Was Fac Ext Cet Arc Hub Fac Gar Fac Gar Res Res Gar Acc Traps Triggered 43 | . 1 . . . . . . 4 . . . . . 2 8 . 1 . . 3 . . 1 1 9 2 4 . . 6 1 Indirectly . | . . . . . . . . . . . . . . . . . . . . . . . . . . . . . . . . Trap Hack Attempts . | . . . . . . . . . . . . . . . . . . . . . . . . . . . . . . . . Triggered . | . . . . . . . . . . . . . . . . . . . . . . . . . . . . . . . . Disarmed . | . . . . . . . . . . . . . . . . . . . . . . . . . . . . . . . . Reprogrammed . | . . . . . . . . . . . . . . . . . . . . . . . . . . . . . . . . Reused . | . . . . . . . . . . . . . . . . . . . . . . . . . . . . . . . . Traps Extracted . | . . . . . . . . . . . . . . . . . . . . . . . . . . . . . . . . Installed . | . . . . . . . . . . . . . . . . . . . . . . . . . . . . . . . . Triggered 2 | . . . . . . . . . . . . . . . . . . . . . . . 1 . . . . 1 . . . Machines | -11 -10 -10 -9 -9 -9 -8 -8 -8 -7 -7 -7 -7 -6 -6 -6 -6 -5 -5 -5 -5 -5 -5 -5 -4 -4 -4 -4 -3 -2 -2 -1 ---------- Run | Scr Mat Min Mat Min Exi Min Mat Sto Fac Low Low Zio Pro Fac Gar Fac Fac Was Fac Ext Cet Arc Hub Fac Gar Fac Gar Res Res Gar Acc Machines Disabled 76 | . . 1 . . . . 1 2 . 1 1 . . . 1 2 . . 1 2 6 2 16 4 7 14 4 1 . 4 6 Max in Single Turn 11 | . . 1 . . . . 1 1 . 1 1 . . . 1 1 . . . 1 3 1 11 1 2 6 1 1 . 1 1 Garrison Access 4 | . . . . . . . . 1 . . . . . . . 1 . . . . . . . . . . . 1 . . 1 Garrison Relay 9 | . . . . . . . . . . . . . . . 1 . . . . . . . . . 4 . 2 . . 2 . Network Hub 4 | . . . . . . . . . . . . . . . . . . . . . . . 4 . . . . . . . . Machines Sabotaged . | . . . . . . . . . . . . . . . . . . . . . . . . . . . . . . . . Garrisons Compromised . | . . . . . . . . . . . . . . . . . . . . . . . . . . . . . . . . Overloaded Fab Kills . | . . . . . . . . . . . . . . . . . . . . . . . . . . . . . . . . Fab Network Shutdowns . | . . . . . . . . . . . . . . . . . . . . . . . . . . . . . . . . Hacking | -11 -10 -10 -9 -9 -9 -8 -8 -8 -7 -7 -7 -7 -6 -6 -6 -6 -5 -5 -5 -5 -5 -5 -5 -4 -4 -4 -4 -3 -2 -2 -1 --------- Run | Scr Mat Min Mat Min Exi Min Mat Sto Fac Low Low Zio Pro Fac Gar Fac Fac Was Fac Ext Cet Arc Hub Fac Gar Fac Gar Res Res Gar Acc Machines Accessed 60 | . 5 1 3 . 2 . 7 11 4 . 1 1 . 2 . 3 . . 1 9 1 . . 1 . 1 . 4 1 . 2 Terminals 39 | . 5 1 3 . . . 6 8 2 . . . . . . 1 . . . 9 1 . . . . . . 2 . . 1 Fabricators 2 | . . . . . . . . . 1 . . . . 1 . . . . . . . . . . . . . . . . . Repair Stations 3 | . . . . . . . . 2 1 . . . . . . . . . . . . . . . . . . . . . . Recycling Units . | . . . . . . . . . . . . . . . . . . . . . . . . . . . . . . . . Scanalyzers 4 | . . . . . . . 1 . . . . . . . . 1 . . 1 . . . . . . . . 1 . . . Garrison Access 8 | . . . . . . . . 1 . . . . . 1 . 1 . . . . . . . 1 . 1 . 1 1 . 1 Total Hacks 150 | . 16 6 10 . 2 . 23 23 10 . 1 5 . 3 . 7 . . 1 24 1 . . 1 . 1 . 8 1 . 7 Successful 86 | . 11 2 8 . 2 . 16 12 4 . 1 5 . 2 . 2 . . . 11 1 . . 1 . 1 . 4 1 . 2 Failed 62 | . 4 4 2 . . . 6 11 6 . . . . 1 . 5 . . 1 13 . . . . . . . 4 . . 5 Catastrophic 5 | . . 1 . . . . . 2 1 . . . . . . . . . . . . . . . . . . . . . 1 Database Lockouts 2 | . 1 . . . . . 1 . . . . . . . . . . . . . . . . . . . . . . . . Manual 76 | . 11 6 10 . 1 . 9 12 5 1 . . . . . 3 . . . 9 1 . . . . . . 5 1 . 2 Terminals 112 | . 16 6 10 . . . 18 18 5 . . . . . . 3 . . . 24 1 . . . . . . 5 . . 6 Fabricators 5 | . . . . . . . . . 3 . . . . 2 . . . . . . . . . . . . . . . . . Repair Stations 6 | . . . . . . . . 4 2 . . . . . . . . . . . . . . . . . . . . . . Recycling Units . | . . . . . . . . . . . . . . . . . . . . . . . . . . . . . . . . Scanalyzers 11 | . . . . . . . 5 . . . . . . . . 3 . . 1 . . . . . . . . 2 . . . Garrison Access 8 | . . . . . . . . 1 . . . . . 1 . 1 . . . . . . . 1 . 1 . 1 1 . 1 Terminal Hacks 44 | . 6 2 4 . 2 . 8 4 1 . 1 5 . . . . . . . 9 1 . . . . . . . . . 1 Record 1 | . . . . . 1 . . . . . . . . . . . . . . . . . . . . . . . . . . Part Schematic 6 | . . . . . . . . . . . . 5 . . . . . . . 1 . . . . . . . . . . . Robot Analysis 8 | . 1 2 3 . . . 1 . 1 . . . . . . . . . . . . . . . . . . . . . . Prototype ID Bank 4 | . 1 . . . . . 2 . . . . . . . . . . . . 1 . . . . . . . . . . . Open Door 9 | . . . . . . . . 2 . . 1 . . . . . . . . 5 1 . . . . . . . . . . Branch Access Points 1 | . 1 . . . . . . . . . . . . . . . . . . . . . . . . . . . . . . Terminal Index 1 | . . . . . . . . . . . . . . . . . . . . . . . . . . . . . . . 1 Unreport Threat 3 | . . . . . . . 1 . . . . . . . . . . . . 2 . . . . . . . . . . . Locate Traps 4 | . 2 . . . . . 2 . . . . . . . . . . . . . . . . . . . . . . . . Recall Investigation 3 | . 1 . . . . . 1 1 . . . . . . . . . . . . . . . . . . . . . . . Recall Reinforcements 1 | . . . . . . . . 1 . . . . . . . . . . . . . . . . . . . . . . . Hauler Manifests 2 | . . . 1 . . . 1 . . . . . . . . . . . . . . . . . . . . . . . . EX-Prototype ID Bank 1 | . . . . . 1 . . . . . . . . . . . . . . . . . . . . . . . . . . Fabricator Hacks 1 | . . . . . . . . . . . . . . 1 . . . . . . . . . . . . . . . . . Load Schematic 1 | . . . . . . . . . . . . . . 1 . . . . . . . . . . . . . . . . . Repair Station Hacks 5 | . . . . . . . . 4 1 . . . . . . . . . . . . . . . . . . . . . . Scan Component 3 | . . . . . . . . 2 1 . . . . . . . . . . . . . . . . . . . . . . Repair 2 | . . . . . . . . 2 . . . . . . . . . . . . . . . . . . . . . . . Recycling Unit Hacks . | . . . . . . . . . . . . . . . . . . . . . . . . . . . . . . . . Scanalyzer 7 | . . . . . . . 5 . . . . . . . . 1 . . . . . . . . . . . 1 . . . Insert Component 4 | . . . . . . . 2 . . . . . . . . 1 . . . . . . . . . . . 1 . . . Analyze 3 | . . . . . . . 3 . . . . . . . . . . . . . . . . . . . . . . . . Garrison Access Hacks 8 | . . . . . . . . 1 . . . . . 1 . 1 . . . . . . . 1 . 1 . 1 1 . 1 Unlock Access 4 | . . . . . . . . . . . . . . 1 . . . . . . . . . 1 . 1 . . 1 . . Seal Access 4 | . . . . . . . . 1 . . . . . . . 1 . . . . . . . . . . . 1 . . 1 Unauthorized Hacks 21 | . 5 . 4 . . . 3 3 2 . . . . . . . . . . 2 . . . . . . . 2 . . . Terminals 20 | . 5 . 4 . . . 3 3 1 . . . . . . . . . . 2 . . . . . . . 2 . . . Track 6 | . 3 . 2 . . . 1 . . . . . . . . . . . . . . . . . . . . . . . . Assimilate 1 | . . . . . . . . . . . . . . . . . . . . . . . . . . . . 1 . . . Botnet 11 | . 1 . 2 . . . 2 3 1 . . . . . . . . . . 2 . . . . . . . . . . . Operators 2 | . 1 . . . . . . . . . . . . . . . . . . . . . . . . . . 1 . . . Fabricators 1 | . . . . . . . . . 1 . . . . . . . . . . . . . . . . . . . . . . Haulers 1 | . . . . . . . . . 1 . . . . . . . . . . . . . . . . . . . . . . Repair Stations . | . . . . . . . . . . . . . . . . . . . . . . . . . . . . . . . . Recycling Units . | . . . . . . . . . . . . . . . . . . . . . . . . . . . . . . . . Scanalyzers . | . . . . . . . . . . . . . . . . . . . . . . . . . . . . . . . . Garrison Access . | . . . . . . . . . . . . . . . . . . . . . . . . . . . . . . . . Data Cores Recovered 1 | . . . . . . . 1 . . . . . . . . . . . . . . . . . . . . . . . . Used . | . . . . . . . . . . . . . . . . . . . . . . . . . . . . . . . . Hacking Detections 42 | . 4 1 3 . . . 7 8 4 . . . . 2 . 2 . . 1 8 . . . . . . . 1 . . 1 Full Trace Events 2 | . . . . . . . 1 . . . . . . . . . . . . 1 . . . . . . . . . . . Feedback Events 1 | . . . . . . . . . . . . . . . . . . . . 1 . . . . . . . . . . . Corruption 1 | . . . . . . . . . . . . . . . . . . . . 1 . . . . . . . . . . . Feedback Blocked . | . . . . . . . . . . . . . . . . . . . . . . . . . . . . . . . . Robot Schematics Acquired . | . . . . . . . . . . . . . . . . . . . . . . . . . . . . . . . . Robots Built . | . . . . . . . . . . . . . . . . . . . . . . . . . . . . . . . . Matter . | . . . . . . . . . . . . . . . . . . . . . . . . . . . . . . . . Time . | . . . . . . . . . . . . . . . . . . . . . . . . . . . . . . . . Total Robot Build Rating . | . . . . . . . . . . . . . . . . . . . . . . . . . . . . . . . . Part Schematics Acquired 8 | . . . . . . . 2 . . . . 5 . . . . . . . 1 . . . . . . . . . . . Parts Built . | . . . . . . . . . . . . . . . . . . . . . . . . . . . . . . . . Matter . | . . . . . . . . . . . . . . . . . . . . . . . . . . . . . . . . Time . | . . . . . . . . . . . . . . . . . . . . . . . . . . . . . . . . Total Part Build Rating . | . . . . . . . . . . . . . . . . . . . . . . . . . . . . . . . . Parts Repaired 2 | . . . . . . . . 2 . . . . . . . . . . . . . . . . . . . . . . . Time 70 | . . . . . . . . 70 . . . . . . . . . . . . . . . . . . . . . . . Parts Recycled . | . . . . . . . . . . . . . . . . . . . . . . . . . . . . . . . . Recycled Matter . | . . . . . . . . . . . . . . . . . . . . . . . . . . . . . . . . Retrieved Matter . | . . . . . . . . . . . . . . . . . . . . . . . . . . . . . . . . Retrieved Components . | . . . . . . . . . . . . . . . . . . . . . . . . . . . . . . . . Parts Scanalyzed 3 | . . . . . . . 2 . . . . . . . . 1 . . . . . . . . . . . . . . . Part Schematics Acquired 2 | . . . . . . . 2 . . . . . . . . . . . . . . . . . . . . . . . . Parts Damaged . | . . . . . . . . . . . . . . . . . . . . . . . . . . . . . . . . Bothacking | -11 -10 -10 -9 -9 -9 -8 -8 -8 -7 -7 -7 -7 -6 -6 -6 -6 -5 -5 -5 -5 -5 -5 -5 -4 -4 -4 -4 -3 -2 -2 -1 ------------ Run | Scr Mat Min Mat Min Exi Min Mat Sto Fac Low Low Zio Pro Fac Gar Fac Fac Was Fac Ext Cet Arc Hub Fac Gar Fac Gar Res Res Gar Acc Used RIF Installer 4 | . . . . . . . . . . . . . . . 1 . . . . . . . . . 1 . 1 . . 1 . Coupler Efficiency 1 | . . . . . . . . . . . . . . . . . . . . . . . . . 1 . . . . . . Command Fork 1 | . . . . . . . . . . . . . . . . . . . . . . . . . . . 1 . . . . Alert ID Control 1 | . . . . . . . . . . . . . . . . . . . . . . . . . . . . . . 1 . Robots Hacked 15 | . . . . . . . . . . . . 3 . . . . 2 . 1 1 . 1 1 . . . . 4 . . 2 Non-combat 11 | . . . . . . . . . . . . 1 . . . . 2 . 1 . . 1 1 . . . . 4 . . 1 Combat 4 | . . . . . . . . . . . . 2 . . . . . . . 1 . . . . . . . . . . 1 Robot Hacks Applied 24 | . . . . . . . . . . . . 3 . . . . 2 . 1 1 . 2 1 . . . . 10 . . 4 parse_system 5 | . . . . . . . . . . . . 3 . . . . . . . 1 . . . . . . . . . . 1 find_chute 1 | . . . . . . . . . . . . . . . . . 1 . . . . . . . . . . . . . . ignore_repairs 1 | . . . . . . . . . . . . . . . . . 1 . . . . . . . . . . . . . . drop_inventory 1 | . . . . . . . . . . . . . . . . . . . . . . . . . . . . 1 . . . purge_threat 10 | . . . . . . . . . . . . . . . . . . . . . . 1 . . . . . 6 . . 3 reprogram_traps 1 | . . . . . . . . . . . . . . . . . . . . . . . 1 . . . . . . . . block_reporting 2 | . . . . . . . . . . . . . . . . . . . . . . . . . . . . 2 . . . map_route 2 | . . . . . . . . . . . . . . . . . . . 1 . . . . . . . . 1 . . . formatsys_low 1 | . . . . . . . . . . . . . . . . . . . . . . 1 . . . . . . . . . Relay Couplers Released 42 | . . . . . . . . . . . . . . . 4 4 . . . . . . . . 16 . 10 . . 8 . Machine Destruction 38 | . . . . . . . . . . . . . . . 4 . . . . . . . . . 16 . 10 . . 8 . Programmers 4 | . . . . . . . . . . . . . . . . 4 . . . . . . . . . . . . . . . Attached 5 | . . . . . . . . . . . . . . . . . . . 1 . . . . . . . . 3 . . 1 Robots Rewired 5 | . . . . . . . . . . . 4 . . . . . . . . . . . . . . . . . . . 1 Allies Hacked . | . . . . . . . . . . . . . . . . . . . . . . . . . . . . . . . . Hacks Repelled . | . . . . . . . . . . . . . . . . . . . . . . . . . . . . . . . . Allies | -11 -10 -10 -9 -9 -9 -8 -8 -8 -7 -7 -7 -7 -6 -6 -6 -6 -5 -5 -5 -5 -5 -5 -5 -4 -4 -4 -4 -3 -2 -2 -1 -------- Run | Scr Mat Min Mat Min Exi Min Mat Sto Fac Low Low Zio Pro Fac Gar Fac Fac Was Fac Ext Cet Arc Hub Fac Gar Fac Gar Res Res Gar Acc Total Allies 48 | . . . . . . . . . . . 4 3 . . . . . 20 . 12 5 1 . . . . . 1 1 . 1 Largest Group 22 | . . . . . . . . . . . 4 7 7 . . . . 20 20 22 18 16 12 . . . . 1 1 1 1 Highest-Rated Group 953 | . . . . . . . . . . . 124 214 214 . . . . 775 775 889 953 953 707 . . . . 26 26 26 34 Highest-Rated Ally 156 | . . . . . . . . . . . 31 37 37 . . . . 50 50 156 156 150 94 . . . . 26 26 26 34 Total Orders 49 | . . . . . . . . . . . . 1 . 5 . 4 . . 4 9 . . 7 3 . 2 . 5 1 4 4 STAY 3 | . . . . . . . . . . . . . . . . . . . . . . . 1 . . . . . . 2 . ROAM 2 | . . . . . . . . . . . . . . . . . . . . . . . . . . . . . . 2 . EXPLORE 44 | . . . . . . . . . . . . 1 . 5 . 4 . . 4 9 . . 6 3 . 2 . 5 1 . 4 Ally Attacks 475 | . . . . . . . . . . . . . 38 . . . . . 34 137 119 26 121 . . . . . . . . Total Damage 12930 | . . . . . . . . . . . . . 572 . . . . . 1054 4455 2316 690 3843 . . . . . . . . Kills 91 | . . . . . . . . . . . . . 9 . . . . . 7 35 11 5 24 . . . . . . . . Allies Corrupted 5 | . . . . . . . . . . . . . . . . . . . . 1 . . 4 . . . . . . . . Allies Melted . | . . . . . . . . . . . . . . . . . . . . . . . . . . . . . . . . Intel | -11 -10 -10 -9 -9 -9 -8 -8 -8 -7 -7 -7 -7 -6 -6 -6 -6 -5 -5 -5 -5 -5 -5 -5 -4 -4 -4 -4 -3 -2 -2 -1 ------- Run | Scr Mat Min Mat Min Exi Min Mat Sto Fac Low Low Zio Pro Fac Gar Fac Fac Was Fac Ext Cet Arc Hub Fac Gar Fac Gar Res Res Gar Acc Robot Analysis Total 8 | . 1 2 3 . . . 1 . 1 . . . . . . . . . . . . . . . . . . . . . . Derelict Logs Recovered 10 | . . 2 . 2 . . . . . 1 2 2 1 . . . . . . . . . . . . . . . . . . Drone Launches 44 | . . . . . . . . . . . . 1 . 5 . 4 . . 4 9 . . 6 3 . 2 . 5 1 . 4 Drone Recoveries 44 | . . . . . . . . . . . . 1 . 5 . 4 . . 4 9 . . 6 3 . 2 . 5 1 . 4 Exploration | -11 -10 -10 -9 -9 -9 -8 -8 -8 -7 -7 -7 -7 -6 -6 -6 -6 -5 -5 -5 -5 -5 -5 -5 -4 -4 -4 -4 -3 -2 -2 -1 ------------- Run | Scr Mat Min Mat Min Exi Min Mat Sto Fac Low Low Zio Pro Fac Gar Fac Fac Was Fac Ext Cet Arc Hub Fac Gar Fac Gar Res Res Gar Acc Turns Passed 36255 | . 388 756 546 971 452 1037 845 1580 1238 1050 1339 1341 888 1406 1820 1053 352 325 435 1364 262 108 1636 1081 2671 1590 3146 1802 154 2856 1763 Spaces Moved 19031 | 1 271 461 308 509 249 520 563 733 844 865 980 1035 652 780 752 506 255 244 313 870 101 73 893 525 1009 686 1292 611 73 1269 788 Core . | . . . . . . . . . . . . . . . . . . . . . . . . . . . . . . . . Treads 7220 | . 3 . . 469 249 520 . 484 84 . . . 15 12 715 . . . . . . . . 26 1009 149 1292 398 73 1269 453 Legs 727 | 1 160 461 105 . . . . . . . . . . . . . . . . . . . . . . . . . . . . Wheels 11084 | . 108 . 203 40 . . 563 249 760 865 980 1035 637 768 37 506 255 244 313 870 101 73 893 499 . 537 . 213 . . 335 Hover . | . . . . . . . . . . . . . . . . . . . . . . . . . . . . . . . . Flight . | . . . . . . . . . . . . . . . . . . . . . . . . . . . . . . . . Fastest Speed 90 | 120 90 150 100 100 180 180 100 110 115 115 115 120 115 115 140 140 126 126 126 126 126 126 126 135 200 140 187 155 192 192 165 Average Speed 154 | 120 126 150 116 166 180 183 108 155 120 115 117 120 119 132 200 145 129 126 126 126 126 126 137 144 200 179 213 192 192 197 182 Slowest Speed 270 | 120 180 150 150 180 180 185 110 220 172 125 170 120 240 200 220 150 150 126 126 126 126 126 170 200 200 270 270 270 192 217 225 Overloaded Moves . | . . . . . . . . . . . . . . . . . . . . . . . . . . . . . . . . Propulsion Burnouts . | . . . . . . . . . . . . . . . . . . . . . . . . . . . . . . . . Robots Hopped . | . . . . . . . . . . . . . . . . . . . . . . . . . . . . . . . . Cave-ins Triggered . | . . . . . . . . . . . . . . . . . . . . . . . . . . . . . . . . Exploration Rate (%) 56 | 3 37 98 38 99 60 97 50 84 10 98 95 86 82 29 66 20 8 95 10 86 78 86 75 16 88 20 68 20 4 84 33 Regions Visited 31 Branch Regions 13 Pre-discovered Areas 4 | . . . . . 1 . . . . . 1 2 . . . . . . . . . . . . . . . . . . . Known Exits Taken 15 | . 1 . . . . 1 1 1 1 . . . 1 1 . 1 . . 1 1 . . 1 1 . 1 . 1 1 . . Unknown Exits Taken 10 | 1 . 1 1 1 1 . . . . 1 1 1 . . . . . . . . 1 1 . . . . . . . . . Scrap Searched 16 | . . 1 . 1 . 1 . . . 2 4 4 3 . . . . . . . . . . . . . . . . . . Spaces Dug 106 | . . . . . . . 1 10 . 1 1 8 . 2 . 10 . . . . . . 5 8 11 12 3 9 . 4 21 Terrain Destroyed 722 | . . 6 . 17 . 4 23 14 . 4 2 8 1 2 27 28 . . . . . . 340 28 30 104 14 18 . 21 31 Melee 75 | . . . . . . . 1 10 . 1 1 8 . 2 . 10 . . . . . . 5 8 3 . . 9 . 3 14 Projectile 84 | . . . . . . . 1 . . 3 1 . 1 . . . . . . . . . 2 20 16 15 8 7 . 1 9 AOE 563 | . . 6 . 17 . 4 21 4 . . . . . . 27 18 . . . . . . 333 . 11 89 6 2 . 17 8 Actions | -11 -10 -10 -9 -9 -9 -8 -8 -8 -7 -7 -7 -7 -6 -6 -6 -6 -5 -5 -5 -5 -5 -5 -5 -4 -4 -4 -4 -3 -2 -2 -1 --------- Run | Scr Mat Min Mat Min Exi Min Mat Sto Fac Low Low Zio Pro Fac Gar Fac Fac Was Fac Ext Cet Arc Hub Fac Gar Fac Gar Res Res Gar Acc Total 24177 | . 297 497 422 578 255 568 680 985 991 894 1093 1083 704 1028 929 708 273 268 352 1099 231 85 1196 755 1517 1041 1666 1193 86 1621 1082 Wait 2145 | . . 1 32 13 . 19 12 73 81 2 8 8 4 108 26 85 5 6 21 142 109 2 149 100 305 135 155 240 4 210 90 Move 19002 | . 270 460 307 508 248 519 562 732 843 864 979 1034 651 779 751 505 255 243 312 869 100 72 892 525 1008 686 1291 610 73 1267 787 Hop . | . . . . . . . . . . . . . . . . . . . . . . . . . . . . . . . . Pick Up 369 | . 3 6 15 7 4 1 18 25 12 3 10 2 1 31 22 15 2 5 3 1 6 . 16 20 13 28 37 30 1 15 17 Fast Attach 86 | . 3 . 5 1 . 1 3 3 2 . . 1 1 4 1 1 1 2 . 4 1 1 11 1 1 9 11 6 . 6 6 Attach 153 | . 3 2 2 2 . 2 5 11 3 . 5 . 5 9 4 7 1 . . 3 1 . 8 14 3 15 10 20 3 5 10 Detach 46 | . 2 . . . . . . 1 1 . 1 1 . . . . . . . 3 1 . 7 5 1 2 3 13 . 1 4 Swap 412 | . 2 5 5 8 1 3 13 15 6 8 20 7 17 23 23 24 2 . 11 24 2 3 20 20 16 24 6 46 3 17 38 Drop 342 | . 3 5 13 5 2 1 7 10 10 4 7 2 4 16 19 8 2 12 4 6 7 3 27 10 9 29 41 30 2 23 21 Fire 1380 | . 11 18 43 34 . 22 59 99 32 9 31 5 21 39 70 47 5 . 1 18 3 4 59 49 145 113 99 186 . 65 93 Melee 145 | . . . . . . . 1 11 1 4 2 23 . 19 1 16 . . . 5 1 . 7 11 4 . 7 12 . 4 16 Ram . | . . . . . . . . . . . . . . . . . . . . . . . . . . . . . . . . Kick . | . . . . . . . . . . . . . . . . . . . . . . . . . . . . . . . . Crush 1 | . . . . . . . . 1 . . . . . . . . . . . . . . . . . . . . . . . Escape Stasis 66 | . . . . . . . . 4 . . . . . . 12 . . . . 24 . . . . 12 . 6 . . 8 . Rewire 30 | . . . . . . . . . . . 30 . . . . . . . . . . . . . . . . . . . . Trap . | . . . . . . . . . . . . . . . . . . . . . . . . . . . . . . . . Miscellaneous . | . . . . . . . . . . . . . . . . . . . . . . . . . . . . . . . . Route ------- -11/Scrapyard -10/Materials (discovered 2 exits: *Min x2) -10/Mines (discovered 2 exits: *Mat x2) -9/Materials -9/Mines (discovered 3 exits: *Mat x2 / *Exi) -9/Exiles -8/Mines (discovered 2 exits: *Mat x2) -8/Materials (discovered 3 exits: *Fac x2 / *Sto) -8/Storage -7/Factory -7/Lower Caves -7/Lower Caves (discovered 2 exits: *Fac / *Zio) -7/Zion -6/Proximity Caves -6/Factory (discovered 2 exits: *Fac / Gar) -6/Garrison (discovered 3 exits: *Fac x3) -6/Factory (discovered 6 exits: *Fac x4 / *Low x2) -5/Factory -5/Waste -5/Factory (discovered 4 exits: Upp x2 / *Ext x2) -5/Extension (discovered 3 exits: *Fac x2 / *Cet) -5/Cetus -5/Archives (discovered 3 exits: *Fac / [*Hub x2]) -5/Hub_04(d) (discovered 4 exits: *Fac x4) -4/Factory (discovered 6 exits: Res x4 / [*Upp] / Gar) -4/Garrison (discovered 3 exits: *Fac x3) -4/Factory -4/Garrison (discovered 3 exits: *Res x3) -3/Research (discovered 5 exits: *Res x3 / Qua x2) -2/Research -2/Garrison (discovered 3 exits: *Acc x3) -1/Access (discovered 2 exits: [*Sur] / [Com]) To Epsilon Eridani History --------- Turn | Location | Event 1 | -11/Scrapyard | Discovered new exit (range 0) 1 | -11/Scrapyard | Entered Materials 277 | -10/Materials | Central database locked down 277 | -10/Materials | Identified exit to Mines 317 | -10/Materials | Build established: Mutant 389 | -10/Materials | Entered Mines 400 | -10/Mines | Core integrity fell below 50% 421 | -10/Mines | Learned Materials terminal intel 768 | -10/Mines | Discovered new exit (range 8) 806 | -10/Mines | Build established: Scavenger-Mutant 1112 | -10/Mines | Discovered new exit (range 17) 1145 | -10/Mines | Entered Materials 1145 | -9/Materials | Evolved 2 slots: Utility x2 1146 | -9/Materials | Loaded intel: 12 terminal locations 1497 | -9/Materials | Discovered new exit (range 10) 1638 | -9/Materials | Build established: Mutant 1691 | -9/Materials | Entered Mines 1692 | -9/Mines | Assembled infested the area 1748 | -9/Mines | Destroyed 11 combat bots 1775 | -9/Mines | Met a Derelict bent on vengeance 1923 | -9/Mines | Identified exit to Materials 2101 | -9/Mines | Learned location of 1 exit from Materials 2409 | -9/Mines | Discovered exit to Materials (range 9) 2652 | -9/Mines | Deemed a non-threat by the Exiles lab entrance 2653 | -9/Mines | Discovered new exit (range 5) 2662 | -9/Mines | Entered Exiles 2707 | -9/Exiles | Met 8R-AWN 2736 | -9/Exiles | Met EX-HEX 2787 | -9/Exiles | Met EX-BIN 2808 | -9/Exiles | Aligned with FarCom system 2810 | -9/Exiles | Given EX-Vault access code 2851 | -9/Exiles | Opened EX-Vault 2865 | -9/Exiles | Found Longsword +1 2900 | -9/Exiles | Warned to stay clear of 0b10 Research branches 2954 | -9/Exiles | Met EX-DEC 2961 | -9/Exiles | Learned location of Zion (-7) 3100 | -9/Exiles | Discovered new exit (range 10) 3114 | -9/Exiles | Left Exiles lab with Longsword +1 3114 | -9/Exiles | Entered Mines 3520 | -8/Mines | Discovered exit to Materials (range 8) 3850 | -8/Mines | Discovered exit to Materials (range 5) 4151 | -8/Mines | Entered Materials 4151 | -8/Materials | Evolved 2 slots: Utility x2 4152 | -8/Materials | Identified exit to Storage 4153 | -8/Materials | Identified exit to Factory 4359 | -8/Materials | Central database locked down 4548 | -8/Materials | Build established: Hauler-Mutant 4568 | -8/Materials | Discovered exit to Factory (range 16) 4996 | -8/Materials | Entered Storage 5276 | -8/Storage | Lost 3 parts (1n1u1w) 5303 | -8/Storage | Core integrity fell below 50% 5523 | -8/Storage | Repaired Arm. Wheel 6499 | -8/Storage | Repaired Shock Bomb Launcher 6543 | -8/Storage | Discovered exit to Factory (range 16) 6576 | -8/Storage | Entered Factory 6576 | -7/Factory | Evolved 2 slots: Utility x1, Weapon x1 6731 | -7/Factory | Discovered new exit (range 15) 6870 | -7/Factory | Build established: Hauler-Gunner 7692 | -7/Factory | Identified exit to Lower Caves 7814 | -7/Factory | Entered Lower Caves 8480 | -7/Lower Caves | Learned location of 1 exit from Proximity Caves 8643 | -7/Lower Caves | Discovered new exit (range 13) 8821 | -7/Lower Caves | Acquired the password to a Derelict Tinkerer's latest research 8829 | -7/Lower Caves | Found Prototype Special Weapon 8864 | -7/Lower Caves | Entered another Lower Caves area 9077 | -7/Lower Caves | Discovered new exit (range 13) 9594 | -7/Lower Caves | Learned Factory security intel 9876 | -7/Lower Caves | Learned location of Extension (-5) 10044 | -7/Lower Caves | Attacked by a delusional Derelict stockpiling Unaware 10130 | -7/Lower Caves | Discovered new exit (range 12) 10203 | -7/Lower Caves | Entered Zion 10203 | -7/Zion | Accompanied by 4 allies 10214 | -7/Zion | Learned 4 Factory zone layouts 10270 | -7/Zion | Given the Hacking Drone Bay 10272 | -7/Zion | Found Prototype Device 10272 | -7/Zion | Identified Hacking Drone Bay 10288 | -7/Zion | Discovered new exit (range 12) 10412 | -7/Zion | Given A8's code to call for help 10525 | -7/Zion | Learned Factory emergency access door positions 10571 | -7/Zion | Learned location of Warlord (-5) 10579 | -7/Zion | Build established: Hauler-Mutant 10703 | -7/Zion | Gained Derelict followers 10795 | -7/Zion | Found CR-A16's Pointy Stick 11293 | -7/Zion | Rebuked by Imprinter 11544 | -7/Zion | Entered Proximity Caves 11544 | -6/Proximity Caves | Accompanied by 7 allies 11545 | -6/Proximity Caves | Identified exit to Factory 11839 | -6/Proximity Caves | Build established: Hauler-Gunner 12075 | -6/Proximity Caves | Learned Factory security intel 12382 | -6/Proximity Caves | Lost 5 parts (2n1u2w) 12430 | -6/Proximity Caves | Attracted the attention of an 0b10 checkpoint 12432 | -6/Proximity Caves | Entered Factory 12432 | -6/Factory | Evolved 2 slots: Utility x2 12759 | -6/Factory | Spotted B-75 Beast 12931 | -6/Factory | Revealed the true nature of CR-A16's Pointy Stick 12940 | -6/Factory | Destroyed B-75 Beast 13002 | -6/Factory | Lost 5 parts (1p2n2u) 13481 | -6/Factory | Build established: Hauler-Tank 13482 | -6/Factory | Identified exit to Garrison 13485 | -6/Factory | Discovered new exit (range 9) 13838 | -6/Factory | Entered Garrison 13890 | -6/Garrison | Triggered checkpoint 13965 | -6/Garrison | Triggered checkpoint 14084 | -6/Garrison | Triggered checkpoint 14087 | -6/Garrison | Triggered checkpoint 14091 | -6/Garrison | Core integrity fell below 50% 14172 | -6/Garrison | Triggered checkpoint 14412 | -6/Garrison | Build established: Hauler-Skirmisher 14518 | -6/Garrison | Discovered new exit (range 12) 14763 | -6/Garrison | Discovered new exit (range 8) 14919 | -6/Garrison | Discovered new exit (range 19) 14965 | -6/Garrison | Installed Relay Interface Framework 15109 | -6/Garrison | Build established: Hauler-Mutant 15244 | -6/Garrison | Garrison Relay disabled 15658 | -6/Garrison | Entered Factory 15675 | -6/Factory | Discovered new exit (range 4) 15830 | -6/Factory | Garrison activated, responded to threat 16008 | -6/Factory | First assault squad dispatched 16157 | -6/Factory | Lost 6 parts (2n1u3w) 16386 | -6/Factory | Identified exit to Factory 16387 | -6/Factory | Identified exit to Lower Caves 16413 | -6/Factory | Build established: Hauler-Skirmisher 16711 | -6/Factory | Entered another Factory area 16711 | -5/Factory | Evolved 2 slots: Propulsion x1, Utility x1 17063 | -5/Factory | Sucked down chute 17063 | -5/Factory | Entered Waste 17064 | -5/Waste | Joined by Warlord forces that had cleared the area 17105 | -5/Waste | Found Damper Plating 17176 | -5/Waste | Found Damper Plating 17239 | -5/Waste | Build established: Scavenger-Skirmisher 17342 | -5/Waste | Discovered new exit (range 12) 17388 | -5/Waste | Entered Factory 17388 | -5/Factory | Accompanied by 20 allies 17777 | -5/Factory | Build established: Hauler-Mutant 17778 | -5/Factory | Discovered new exit (range 20) 17802 | -5/Factory | Identified exit to Upper Caves 17802 | -5/Factory | Identified exit to Extension 17823 | -5/Factory | Entered Extension 17823 | -5/Extension | Accompanied by 13 allies 17929 | -5/Extension | Identified Molecular Deconstructor 17933 | -5/Extension | Rescued a captive Derelict 17964 | -5/Extension | Identified exit to Cetus 17988 | -5/Extension | Identified exit to Factory 18006 | -5/Extension | Rescued a captive Derelict 18209 | -5/Extension | Rescued a captive Derelict 18210 | -5/Extension | Rescued a captive Derelict 18507 | -5/Extension | Spotted B-75 Beast 18515 | -5/Extension | Spotted B-75 Beast 18525 | -5/Extension | Allies destroyed B-75 Beast 18546 | -5/Extension | Allies destroyed B-75 Beast 18573 | -5/Extension | Rescued a captive Derelict 18654 | -5/Extension | Rescued a captive Derelict 18683 | -5/Extension | Rescued a captive Derelict 18698 | -5/Extension | Rescued a captive Derelict 18719 | -5/Extension | Rescued a captive Derelict 18833 | -5/Extension | Rescued a captive Derelict 18884 | -5/Extension | Rescued A7 18972 | -5/Extension | Rescued a captive Derelict 19130 | -5/Extension | Rescued a captive Derelict 19187 | -5/Extension | Entered Cetus 19187 | -5/Cetus | Accompanied by 18 allies 19192 | -5/Cetus | Acquired a Cetus Manufacturing Module code from A7 19199 | -5/Cetus | Spotted Cetus Guard 19200 | -5/Cetus | Spotted Cetus Guard 19202 | -5/Cetus | Spotted Cetus Guard 19204 | -5/Cetus | Spotted Cetus Guard 19219 | -5/Cetus | Allies destroyed Cetus Guard 19219 | -5/Cetus | Allies destroyed Cetus Guard 19225 | -5/Cetus | Allies destroyed Cetus Guard 19226 | -5/Cetus | Allies destroyed Cetus Guard 19282 | -5/Cetus | Started Cetus Manufacturing Module 19307 | -5/Cetus | Manufactured an Enhanced Grunt 19313 | -5/Cetus | Escorted A7 to Cetus Mainframe 19321 | -5/Cetus | Discovered new exit (range 21) 19332 | -5/Cetus | Manufactured an Enhanced Grunt 19357 | -5/Cetus | Manufactured an Enhanced Grunt 19382 | -5/Cetus | Manufactured an Enhanced Grunt 19407 | -5/Cetus | Manufactured an Enhanced Grunt 19449 | -5/Cetus | Entered Archives 19449 | -5/Archives | Accompanied by 16 allies 19454 | -5/Archives | Received a hacking code to weaken MAIN.C 19483 | -5/Archives | Discovered exit to Factory (range 14) 19494 | -5/Archives | Discovered new exit (range 22) 19514 | -5/Archives | Discovered new exit (range 21) 19557 | -5/Archives | Entered Hub_04(d) 19557 | -5/Hub_04(d) | Accompanied by 12 allies 19883 | -5/Hub_04(d) | Build established: Scavenger-Skirmisher 20189 | -5/Hub_04(d) | Spotted B-75 Beast 20201 | -5/Hub_04(d) | Destroyed B-75 Beast 20443 | -5/Hub_04(d) | P-70 Sage assimilated allied 3B-QP5(m) 20456 | -5/Hub_04(d) | Network Hub disabled 20676 | -5/Hub_04(d) | Spotted Lightning 20676 | -5/Hub_04(d) | Spotted Lightning 20676 | -5/Hub_04(d) | Spotted Lightning 20687 | -5/Hub_04(d) | Network Hub disabled 20687 | -5/Hub_04(d) | Network Hub disabled 20697 | -5/Hub_04(d) | Destroyed Lightning 20722 | -5/Hub_04(d) | Destroyed Lightning 20757 | -5/Hub_04(d) | Destroyed Lightning 20769 | -5/Hub_04(d) | Found Prototype Energy Cannon 20769 | -5/Hub_04(d) | Identified EMDS 20776 | -5/Hub_04(d) | Found Prototype Device 20776 | -5/Hub_04(d) | Identified EM Dispersion Field 20785 | -5/Hub_04(d) | Found Prototype Device 20785 | -5/Hub_04(d) | Identified Exp. Phase Shifter 20794 | -5/Hub_04(d) | Found Exp. Targeting Computer 20804 | -5/Hub_04(d) | Found EMDS 20820 | -5/Hub_04(d) | Found Exp. Targeting Computer 20832 | -5/Hub_04(d) | Found EM Dispersion Field 20925 | -5/Hub_04(d) | Spotted Lightning 20925 | -5/Hub_04(d) | Spotted Lightning 20925 | -5/Hub_04(d) | Spotted Lightning 20957 | -5/Hub_04(d) | Destroyed Lightning 20974 | -5/Hub_04(d) | Destroyed Lightning 20988 | -5/Hub_04(d) | Destroyed Lightning 20994 | -5/Hub_04(d) | Found EMDS 21057 | -5/Hub_04(d) | First assault squad dispatched 21080 | -5/Hub_04(d) | Network Hub disabled 21193 | -5/Hub_04(d) | Entered Factory 21193 | -4/Factory | Evolved 2 slots: Power x1, Utility x1 21469 | -4/Factory | First assault squad dispatched 21507 | -4/Factory | Build established: Hauler-Skirmisher 21716 | -4/Factory | Found Quantum Capacitor 21778 | -4/Factory | Identified exit to Research 21788 | -4/Factory | Discovered new exit (range 16) 22040 | -4/Factory | Found Quantum Capacitor 22204 | -4/Factory | Lost 3 parts (1p1n1u) 22274 | -4/Factory | Identified exit to Garrison 22274 | -4/Factory | Entered Garrison 22342 | -4/Garrison | Triggered checkpoint 22387 | -4/Garrison | Garrison Relay disabled 22461 | -4/Garrison | Build established: Scavenger-Mutant 22615 | -4/Garrison | Triggered checkpoint 22621 | -4/Garrison | Spotted B-86 Titan 22687 | -4/Garrison | Destroyed B-86 Titan 22850 | -4/Garrison | Triggered checkpoint 23078 | -4/Garrison | Discovered new exit (range 10) 23128 | -4/Garrison | Triggered checkpoint 23512 | -4/Garrison | Triggered checkpoint 23563 | -4/Garrison | Discovered new exit (range 10) 23879 | -4/Garrison | Discovered new exit (range 8) 23903 | -4/Garrison | Expanded RIF knowledge: Coupler Efficiency 23964 | -4/Garrison | Triggered checkpoint 23991 | -4/Garrison | Garrison Relay disabled 24074 | -4/Garrison | Triggered checkpoint 24200 | -4/Garrison | Triggered checkpoint 24304 | -4/Garrison | Garrison Relay disabled 24855 | -4/Garrison | Garrison Relay disabled 24945 | -4/Garrison | Entered Factory 25252 | -4/Factory | Build established: Hauler-Mutant 25977 | -4/Factory | First assault squad dispatched 26535 | -4/Factory | Identified exit to Garrison 26535 | -4/Factory | Entered Garrison 26674 | -4/Garrison | Triggered checkpoint 26742 | -4/Garrison | Found Antimissile System 26878 | -4/Garrison | Triggered checkpoint 27032 | -4/Garrison | Spotted B-86 Titan 27040 | -4/Garrison | Destroyed B-86 Titan 27060 | -4/Garrison | Spotted B-86 Titan 27087 | -4/Garrison | Destroyed B-86 Titan 27367 | -4/Garrison | Triggered checkpoint 27406 | -4/Garrison | Garrison Relay disabled 27569 | -4/Garrison | Spotted B-86 Titan 27598 | -4/Garrison | Destroyed B-86 Titan 27968 | -4/Garrison | Triggered checkpoint 28075 | -4/Garrison | Garrison Relay disabled 28239 | -4/Garrison | Discovered exit to Research (range 15) 28364 | -4/Garrison | Triggered checkpoint 28430 | -4/Garrison | Triggered checkpoint 28525 | -4/Garrison | Discovered exit to Research (range 9) 28555 | -4/Garrison | Expanded RIF knowledge: Command Fork 28975 | -4/Garrison | Found Hvy. Reflective Plating 29632 | -4/Garrison | Discovered exit to Research (range 11) 29681 | -4/Garrison | Entered Research 29681 | -3/Research | Evolved 2 slots: Utility x2 29856 | -3/Research | Found Prototype Device 29971 | -3/Research | First assault squad dispatched 30033 | -3/Research | Identified exit to Research 30219 | -3/Research | Destroyed 12 combat bots 30584 | -3/Research | Identified exit to Quarantine 30725 | -3/Research | Identified Exp. Focal Shield 31462 | -3/Research | Destroyed 7 combat bots 31483 | -3/Research | Entered another Research area 31483 | -2/Research | Evolved 2 slots: Power x1, Utility x1 31637 | -2/Research | Identified exit to Garrison 31637 | -2/Research | Entered Garrison 31637 | -2/Garrison | Accompanied by 1 ally 31774 | -2/Garrison | Triggered checkpoint 32214 | -2/Garrison | Triggered checkpoint 32273 | -2/Garrison | Garrison Relay disabled 32594 | -2/Garrison | Spotted B-90 Cyclops 32704 | -2/Garrison | Destroyed B-90 Cyclops 32750 | -2/Garrison | Triggered checkpoint 32798 | -2/Garrison | Discovered new exit (range 12) 33071 | -2/Garrison | Discovered new exit (range 13) 33130 | -2/Garrison | Build established: Hauler-Assassin 33176 | -2/Garrison | Triggered checkpoint 33293 | -2/Garrison | Discovered new exit (range 8) 33317 | -2/Garrison | Expanded RIF knowledge: Alert ID Control 33456 | -2/Garrison | Build established: Hauler-Mutant 33656 | -2/Garrison | Triggered checkpoint 33754 | -2/Garrison | Triggered checkpoint 33875 | -2/Garrison | Garrison Relay disabled 34130 | -2/Garrison | Build established: Hauler-Assassin 34445 | -2/Garrison | Found Unknown Device 34445 | -2/Garrison | Identified Adv. Force Booster 34493 | -2/Garrison | Entered Access 34493 | -1/Access | Accompanied by 1 ally 34493 | -1/Access | Evolved 2 slots: Utility x2 34893 | -1/Access | Found Prototype Device 35127 | -1/Access | Identified Beam Splitter 35333 | -1/Access | Discovered new exit (range 15) 35613 | -1/Access | Found Quantum Capacitor 35816 | -1/Access | Destroyed 12 combat bots 36113 | -1/Access | Spotted B-99 Colossus 36125 | -1/Access | Spotted B-99 Colossus 36136 | -1/Access | Destroyed B-99 Colossus 36143 | -1/Access | Destroyed B-99 Colossus 36162 | -1/Access | Found Prototype Ballistic Gun 36171 | -1/Access | Found Prototype Ballistic Gun 36205 | -1/Access | Identified Multirail (x2) 36251 | -1/Access | Discovered new exit (range 4) 36256 | *** | Escaped! Last Messages --------------- 36211_ Slug penetrates P-80 Master. 36211_ P-80 Master suffers critical hit. 36211_ P-80 Master destroyed. 36211_ Switching to secondary target: P-80 Master. 36211_ Slug penetrates P-80 Master. 36211_ Slug penetrates Reinforced Barrier. 36214_ Slug penetrates Sealed Heavy Doors. 36214_ P-80 Master suffers critical hit. 36214_ Destroyed Gamma Rifle. 36214_ Slug penetrates Reinforced Barrier. 36217_ Slug penetrates P-80 Master. 36217_ P-80 Master destroyed. 36217_ Slug penetrates Sealed Heavy Doors. 36217_ Slug penetrates Reinforced Barrier. 36225_ Ended siege mode. 36225_ Acquired 64 matter. 36233_ System corrupted: Energy discharge (-232). 36236_ Acquired 24 matter. 36251_ Main Access Shell breached. 36251_ EXIT=FOUND Map ----- +----------------------------------------------------+ | ?????????????????????????????????????????????????? | | ?????????????????????????????????????????????????? | | ?????????????????????????????????????????????????? | | ?????????????????????????????????????????????????? | | ?????????????????????????????????????????????????? | | ?????????????????????????????????????????????????? | | ?????????????????????????????????????????????????? | | ?????????????????????????????????????????????????? | | ?????????????????????????????????????????????????? | | ?????????????????????????????????????????????????? | | ?????????????????????????????????????????????????? | | ?????????????????????????????????????????????????? | | ?????????????????????????????????????????????????? | | ?????????????????????????????????????????????????? | | ?????????????????????????????????????????????????? | | ?????????????????????????????????????????????????? | | ?????????????????????????????????????????????????? | | ?????????????????????????????????????????????? ??? | | ???????????????????????????????????????#??#?? ???? | | ????????????????????"####???##???#########??#???? | | ????????????????????" ???? "??" = ##??????? | | ????????????????????" ???? ""?" !=] ##???? ?? | | ????????????????????" """""" "?"" *%! ######### | | ????????????????????" " " ""?" ! ! [ | | ????????????????????" "" " "?"" ! [ = | | ????????????????????" " @" "!"??" ! % | | ????????????????????" " "="?""=!] % | | ????????????????????" """"""|"??"*%!! ### #### | | ????????????????????" %![!""""![! = | | ????????????????????" !*[*! !=%!=| # | | ????????????????????"##################### | | ??????????????????????#??#????#??#?#?#???# "" | | ????????????????????????#??#?#??#?##?##### "F!!!# | | ?????????????????????#??????#????###?#?#?# """! # | | ????????????????????????#?##???##?###?#### """ # | | ??????????????????????#????????#?#?#??#### """ # | | ?????????????????????##??#?#??###?##### + # | | ????????????????????####??#?#?##?#?#### ## # | | ????????????????????#?#??##?##?##?##### ## # | | ????????????????????####???############+########## | | ??????????????????#?##??#####?# ##?#### | | ?????????????????##???##??#?### ##?#### | | ????????????????#???#####??#### ##?#?## | | ??????????????#???############# ! ####### | | ????????????????????####?###### # | | ???????????????#????#?######### / | | ???????????????#?#?????#?###### # | | ??????????? ?#?#??############# "" "" # | | ???????????? #?## ## ""T"" # ## | | ???????????? ???? ? ## """ # ## | +----------------------------------------------------+ Best States ------------- Heat Dissipation 114 Coolant Potential 100 Energy Generation 57 Energy Capacity 800 Matter Stores 300 Matter Capacity 300 Sight Range 22 Terrain Scan Range 20 Terrain Scan Density 210 Jamming Range 16 Armor Coverage 1650 Resistance: KI 30 Resistance: TH 75 Resistance: EM 90 Core Shielding 20 Weapon Shielding 66 Phase Shifting 20 Evasion (%) 60 Targeting Accuracy 14 Target Analysis 8 Recoil Reduction 3 Particle Charging 25 Salvage Targeting 4 Offensive Hacking 10 Item Schematics ----------------- Lrg. Storage Unit | -8/Materials | Scanalyzed Arm. Wheel | -8/Materials | Scanalyzed Beamcaster | -7/Zion | Free Battle Rifle | -7/Zion | Free Hvy. Battle Rifle | -7/Zion | Free Battle Cannon | -7/Zion | Free Flamer | -7/Zion | Free Arm. Huge Wheel | -5/Extension | Hacked Robot Schematics ------------------ None Fabricated ------------ Nothing Alien Tech Used ----------------- None Achievements -------------- None Challenges ------------ None Game ------ Seed NeutrinoWeaponBooster Manual? 0 Play Time 06:18:05 Cumulative 531.0 hours Start 2020.07.03 @ 08:50:00 End 2020.07.18 @ 15:58:48 Sessions 35 Manual Loads 0 Difficulty Rogue Special Mode None Game No. 155 Rogue 155 Adventurer 0 Explorer 0 Win Type 0 Total 44 Types 25/4/5/3/2/2/3 Lore% 96 Gallery% 98 Achievement% 91 Wizard Run 0 Options --------- ASCII 1 Keyboard 1 Movement Vi Keybinds 0 Fullscreen 1 Font 12/Smallcaps Map View 83x54 Tactical HUD 1 Map Filters NONE Filters NONE Steam 0 RUN: ff78223b-b592-48a2-9e7a-b56af46e0bd8